bitfinex/quotes_ETHUSD_20220311
["timestamp","ask_amount","ask_price","bid_price","bid_amount"]
[1646983465956,1.0,2597.2,2597.1,0.3]
[1646983466161,1.00438812,2597.2,2597.1,0.3]
[1646983466765,1.00438812,2597.2,2597.1,1.2623983]
[1646983467069,1.0,2597.2,2597.1,1.2623983]
[1646983467665,0.00438803,2597.3,2597.1,1.2623983]
[1646983467866,0.00438803,2597.3,2597.1,2.2247283]
[1646983468267,1.0139625,2597.5,2597.1,2.2247283]
[1646983468465,0.00438798,2597.3,2597.1,2.2247283]
[1646983468666,1.0139625,2597.5,2597.1,3.1870583]
[1646983468914,1.0139625,2597.5,2597.1,7.035683]
[1646983469304,1.0139625,2597.5,2597.2,0.3]
[1646983469507,1.0139625,2597.5,2597.2,2.22451]
[1646983470510,1.0139625,2597.5,2597.2,5.11115]
[1646983472321,1.0139625,2597.5,2597.2,3.18664]
[1646983473159,1.01835035,2597.5,2597.2,3.18664]
[1646983473561,3.5,2597.4,2597.2,2.88664]
[1646983473761,0.0518819,2597.3,2597.1,5.773353]
[1646983473961,0.0518819,2597.3,2597.1,4.811023]
[1646983474160,0.0139625,2597.5,2597.1,4.811023]
[1646983474361,1.0,2597.4,2597.1,4.811023]
[1646983474560,0.05007453,2597.3,2597.1,4.811023]
[1646983474761,0.05007453,2597.3,2597.1,5.773483]
[1646983479014,1.00425618,2597.4,2597.1,5.773483]
[1646983479015,1.0,2597.4,2597.1,5.773483]
[1646983479214,1.00407369,2597.4,2597.1,5.773483]
[1646983480254,1.0,2597.4,2597.1,5.773483]
[1646983480455,1.00407373,2597.4,2597.1,5.773483]
[1646983481458,1.0,2597.4,2597.1,5.773483]
[1646983481658,1.00407373,2597.4,2597.1,5.773483]
[1646983482664,1.0,2597.4,2597.1,5.773483]
[1646983482862,1.00408559,2597.4,2597.1,5.773483]
[1646983483263,1.00408559,2597.4,2597.2,3.1869613]
[1646983483914,1.0,2597.4,2597.2,3.1869613]
[1646983484103,1.00408563,2597.4,2597.2,3.1869613]
[1646983484304,9.00256897,2598.5,2597.2,3.1869613]
[1646983484516,2.88736536,2599.1,2597.2,3.1869613]
[1646983484517,1.92425,2600.5,2598.4,0.01230919]
[1646983484718,4.35615077,2600.9,2599.6,3.0]
[1646983484719,1.0,2600.9,2599.6,3.0]
[1646983484917,0.0163508,2601.2,2599.7,4.42352967]
[1646983485113,0.13647496,2602.1,2599.7,4.42352967]
[1646983485114,0.0203318,2602.1,2600.5,3.0]
[1646983485319,0.00096,2601.7,2600.7,3.17215441]
[1646983485518,38.58216435,2602.5,2601.0,0.96079]
[1646983485716,38.58216435,2602.5,2601.4,2.8816436]
[1646983485717,0.004,2602.1,2601.4,2.8816436]
[1646983485918,0.004,2602.1,2601.6,0.08905035]
[1646983486123,21.17150565,2602.5,2601.7,5.462]
[1646983486314,21.17150565,2602.5,2601.8,0.07755239]
[1646983486516,0.008,2602.5,2601.9,1.92135]
[1646983486814,0.008,2602.5,2601.3,0.0758782]
[1646983486815,3.90313242,2602.4,2601.3,0.0758782]
[1646983487017,3.90313242,2602.4,2600.9,0.25]
[1646983487018,3.0,2601.8,2601.1,0.96125]
[1646983487215,3.0,2601.5,2600.9,0.25]
[1646983487416,3.0,2601.1,2599.6,0.0705764]
[1646983487662,3.0,2601.1,2600.0,1.92292]
[1646983487663,0.96156,2601.1,2600.0,1.92292]
[1646983487871,0.98254723,2600.2,2600.0,1.92292]
[1646983488066,2.7837,2601.2,2600.0,3.84607]
[1646983488268,0.00096,2601.0,2600.2,0.96146]
[1646983488469,1.462,2601.2,2600.2,0.96146]
[1646983488671,0.00096,2601.3,2600.3,3.5]
[1646983488867,1.2093,2601.8,2600.3,3.5]
[1646983488868,0.00096,2601.5,2600.4,0.0815447]
[1646983489068,0.83463533,2601.2,2600.4,0.0815447]
[1646983489269,0.83463533,2601.2,2600.6,1.9226309]
[1646983489467,1.0,2601.0,2600.6,1.9226309]
[1646983490067,1.0,2601.0,2600.7,0.00437041]
[1646983490269,3.00096,2601.6,2600.7,0.00437041]
[1646983490270,1.00096,2601.6,2600.7,0.00437041]
[1646983490472,1.0,2601.6,2600.7,0.00437041]
[1646983490668,0.46636863,2601.7,2600.7,0.00437041]
[1646983490874,0.46636863,2601.7,2600.8,1.9221732]
[1646983491071,3.762,2601.7,2600.8,1.9221732]
[1646983491274,1.04900993,2601.6,2601.1,0.00437004]
[1646983491514,1.04900993,2601.6,2601.2,0.96117]
[1646983491712,1.04900993,2601.6,2601.3,0.96112]
[1646983492514,1.04900993,2601.6,2601.3,0.00436981]
[1646983493121,1.04900993,2601.6,2601.3,1.92655981]
[1646983493422,1.0,2601.8,2601.4,3.5]
[1646983493620,1.0,2601.8,2601.3,1.92219]
[1646983493819,0.00198824,2601.7,2601.3,2.883292]
[1646983494219,0.00198824,2601.7,2601.3,0.96111]
[1646983494619,1.0,2601.8,2601.3,0.96111]
[1646983494819,0.00198828,2601.7,2601.4,0.00350323]
[1646983495018,0.98651552,2601.6,2601.4,0.00350323]
[1646983495454,0.00198828,2601.7,2601.4,0.80928708]
[1646983495858,1.95881275,2601.8,2601.4,0.80928708]
[1646983496055,0.00198831,2601.7,2601.4,1.77026708]
[1646983496260,0.00198831,2601.7,2601.5,1.57588866]
[1646983496662,0.40444649,2601.8,2601.4,0.96448323]
[1646983497064,0.40444649,2601.8,2601.4,2.105359]
[1646983497469,0.96905,2602.1,2601.4,0.96448323]
[1646983497470,1.14095603,2601.9,2601.4,0.96448323]
[1646983497663,0.33370482,2601.9,2601.5,1.8258354]
[1646983497865,1.0193093,2602.2,2601.5,2.0679648]
[1646983498065,1.0193093,2602.2,2601.5,2.05430389]
[1646983498269,1.06622344,2602.2,2601.5,2.05430389]
[1646983498764,0.92155028,2602.3,2601.5,1.8258354]
[1646983499036,0.84000973,2602.1,2601.5,2.9172794]
[1646983499237,0.84000973,2602.1,2601.5,1.9030011]
[1646983499840,0.84000973,2602.1,2601.6,0.08500637]
[1646983500842,0.84000973,2602.1,2601.8,0.8647686]
[1646983501042,0.00438581,2602.0,2601.9,0.96084]
[1646983501641,0.00438581,2602.0,2601.9,1.05047869]
[1646983502242,0.86560865,2602.3,2601.9,1.05047869]
[1646983502442,0.00438572,2602.1,2601.9,2.01126869]
[1646983503468,0.00438572,2602.1,2602.0,0.0826864]
[1646983503662,0.00438567,2602.1,2602.0,0.0826864]
[1646983504664,1.72510554,2602.3,2602.0,0.08634511]
[1646983504665,0.00438563,2602.2,2602.0,0.08634511]
[1646983505564,1.72510554,2602.3,2602.0,0.08634511]
[1646983505969,0.00038925,2602.2,2602.0,0.08634511]
[1646983506410,0.00038925,2602.2,2602.0,0.95092571]
[1646983506610,0.00038925,2602.2,2602.0,0.86823931]
[1646983506811,0.00038925,2602.2,2601.9,1.09940713]
[1646983507213,0.0074417,2602.8,2601.9,1.09940713]
[1646983507412,0.9965417,2602.7,2602.1,0.96061]
[1646983507613,0.28746819,2602.7,2602.2,0.96061]
[1646983508217,0.04092649,2602.7,2602.2,0.96061]
[1646983509019,0.04092649,2602.7,2602.2,0.95635594]
[1646983509418,0.00438525,2602.6,2602.2,0.95635594]
[1646983510259,0.88888942,2602.7,2602.3,0.96059]
[1646983510465,0.0043853,2602.5,2602.3,13.19045772]
[1646983510666,0.0043853,2602.5,2602.4,12.22986772]
[1646983511465,0.9608,2602.6,2602.1,0.00338855]
[1646983511865,0.92649154,2602.2,2602.1,0.00338855]
[1646983512265,0.96518525,2602.6,2602.1,0.00338855]
[1646983512466,0.96518525,2602.6,2602.1,0.96410855]
[1646983512667,0.9608,2602.6,2602.1,0.96410855]
[1646983512867,0.00438535,2602.5,2602.1,0.96410855]
[1646983513068,0.00438535,2602.5,2602.1,0.00338855]
[1646983513267,0.90370842,2602.5,2602.1,0.00338855]
[1646983513917,0.89932307,2602.5,2602.1,0.00338855]
[1646983514116,0.00425383,2602.4,2602.1,1.92477855]
[1646983514816,0.00425383,2602.4,2602.3,0.00371456]
[1646983515218,1.19932307,2602.5,2602.3,0.00371456]
[1646983515420,0.00425387,2602.4,2602.3,0.00371456]
[1646983516219,0.85357694,2602.5,2602.3,0.00371456]
[1646983516620,1.15783072,2602.5,2602.3,0.00371456]
[1646983516819,4.15783072,2602.5,2602.3,0.00371456]
[1646983517020,0.462,2602.4,2602.3,0.00371456]
[1646983517220,15.91783072,2602.5,2602.3,0.00371456]
[1646983517221,1.00425378,2602.5,2602.3,0.00371456]
[1646983517423,0.00425378,2602.5,2602.3,0.00371456]
[1646983517663,0.02734034,2602.6,2602.3,0.00371456]
[1646983517861,0.00196745,2602.5,2602.3,0.00371456]
[1646983518068,0.00196745,2602.5,2602.4,0.07920792]
[1646983518262,0.00196745,2602.5,2602.4,0.94828352]
[1646983518764,0.02734034,2602.6,2602.4,0.8690756]
[1646983518969,0.02930783,2602.6,2602.5,0.07764734]
[1646983519366,0.00196749,2602.6,2602.5,0.07764734]
[1646983519765,0.04092649,2602.7,2602.5,0.07764734]
[1646983520167,0.04289398,2602.7,2602.5,0.07764734]
[1646983520865,0.0074417,2602.8,2602.5,0.07764734]
[1646983520866,0.00033568,2602.8,2602.5,0.07764734]
[1646983521271,0.00033568,2602.8,2602.5,0.2089974]
[1646983521530,0.00033568,2602.8,2602.5,1.1695274]
[1646983521719,0.00033568,2602.8,2602.7,0.08529081]
[1646983522120,0.00033568,2602.8,2602.7,0.21662977]
[1646983523530,0.00033568,2602.8,2602.7,0.13133896]
[1646983524825,0.00033568,2602.8,2602.7,0.13473125]
[1646983525681,0.00033568,2602.8,2602.7,1.22028504]
[1646983526085,0.00033568,2602.8,2602.7,0.13473125]
[1646983526485,0.01454772,2602.8,2602.7,0.13473125]
[1646983526885,0.5732831,2602.5,2602.4,1.92088]
[1646983527286,0.5732831,2602.5,2602.4,2.01974396]
[1646983528088,0.5732831,2602.5,2602.4,3.21825121]
[1646983528488,0.5732831,2602.5,2602.4,3.16953855]
[1646983528911,0.5732831,2602.5,2602.4,2.78423855]
[1646983530117,0.5732831,2602.5,2602.4,2.78796031]
[1646983530517,0.5732831,2602.5,2602.4,0.86708031]
[1646983530925,0.5732831,2602.5,2602.4,0.05387306]
[1646983531523,2.15762824,2602.5,2602.4,0.05387306]
[1646983531924,0.5732831,2602.5,2602.4,0.05387306]
[1646983532520,2.15762956,2602.5,2602.4,0.05387306]
[1646983534371,2.15762956,2602.5,2602.4,0.0866675]
[1646983534969,0.5732831,2602.5,2602.4,0.0866675]
[1646983535370,2.15758037,2602.5,2602.4,0.0866675]
[1646983535771,2.15758037,2602.5,2602.4,0.16743778]
[1646983537119,2.15761586,2602.5,2602.4,0.16743778]
[1646983537318,0.5732831,2602.5,2602.4,0.16743778]
[1646983547336,0.5732831,2602.5,2602.4,0.0866675]
[1646983547534,2.1578046,2602.5,2602.4,0.0866675]
[1646983548275,2.4578046,2602.5,2602.4,0.0866675]
[1646983549174,0.5732831,2602.5,2602.4,0.16340996]
[1646983549882,0.9603025,2603.0,2602.5,3.5]
[1646983550079,0.05096,2603.2,2602.9,0.86339881]
[1646983550080,0.05,2603.2,2602.9,0.86339881]
[1646983550279,0.06671442,2603.2,2603.0,0.085327]
[1646983551078,1.58409168,2603.1,2603.0,0.085327]
[1646983551280,0.05,2603.2,2603.0,0.085327]
[1646983551526,0.054065,2603.2,2603.0,0.085327]
[1646983552226,1.58411238,2603.1,2603.0,0.085327]
[1646983552429,1.88411238,2603.1,2602.6,0.08685898]
[1646983552625,0.9603156,2603.0,2602.4,0.07157065]
[1646983553325,0.9603156,2603.0,2602.5,0.98150708]
[1646983553528,0.9603156,2603.0,2602.6,0.06907482]
[1646983553727,0.00196679,2602.8,2602.6,0.06907482]
[1646983554425,0.00196679,2602.8,2602.6,3.56907482]
[1646983554628,0.3,2603.1,2602.6,3.8892026]
[1646983554826,0.35,2603.2,2602.7,0.08029479]
[1646983555032,0.00407699,2602.8,2602.7,0.08029479]
[1646983555265,0.00407699,2602.8,2602.7,0.03029479]
[1646983555871,0.05,2603.2,2602.7,3.53029479]
[1646983556068,0.05,2603.2,2603.0,0.88649587]
[1646983556270,0.05,2603.2,2603.1,3.53274325]
[1646983556671,0.0001,2603.2,2603.1,3.53274325]
[1646983556872,0.0001,2603.2,2603.1,4.53274325]
[1646983557271,0.0111407,2603.3,2603.2,5.8853]
[1646983557474,0.00272064,2603.4,2603.3,3.5]
[1646983558076,2.064e-05,2603.4,2603.3,8.3853]
[1646983558278,3.54242832,2603.6,2603.4,5.5]
[1646983558482,3.54242832,2603.6,2603.5,0.07852226]
[1646983559133,3.54242832,2603.6,2603.5,0.96825967]
[1646983559633,3.84242832,2603.6,2603.5,0.88973741]
[1646983560634,3.84242832,2603.6,2603.2,1.12018254]
[1646983560835,3.84242832,2603.6,2603.2,3.62018254]
[1646983561036,3.84242832,2603.6,2603.2,5.00548254]
[1646983561438,3.84242832,2603.6,2603.2,0.12018254]
[1646983561639,3.84242832,2603.6,2603.4,1.11697609]
[1646983561837,3.84242832,2603.6,2603.2,0.00471675]
[1646983562439,0.00439601,2603.5,2603.2,0.00471675]
[1646983562876,0.00983729,2603.5,2603.2,0.00471675]
[1646983563074,0.00544128,2603.5,2603.2,1.10659294]
[1646983563473,0.00983734,2603.5,2603.2,1.10659294]
[1646983564273,0.00544128,2603.5,2603.2,1.10659294]
[1646983564473,0.00983734,2603.5,2603.2,1.10659294]
[1646983564674,0.00983734,2603.5,2603.4,0.00086881]
[1646983565581,0.00544128,2603.5,2603.4,0.00086881]
[1646983568545,0.00544128,2603.5,2603.4,1.13771224]
[1646983569648,0.00544128,2603.5,2603.4,1.14155888]
[1646983570047,0.00544128,2603.5,2603.4,1.17366213]
[1646983570669,0.00544128,2603.5,2603.4,4.67366213]
[1646983570870,0.00544128,2603.5,2603.4,5.67366213]
[1646983571066,3.5410641,2603.6,2603.5,5.50145688]
[1646983571272,3.55194666,2603.6,2603.5,10.00145688]
[1646983571672,3.5478696,2603.6,2603.5,10.00145688]
[1646983571870,3.5478696,2603.6,2603.5,10.96105688]
[1646983572272,8.058e-05,2603.7,2603.6,12.5682304]
[1646983572471,8.058e-05,2603.7,2603.6,16.0682304]
[1646983572672,8.058e-05,2603.7,2603.6,20.26216077]
[1646983572874,0.0100386,2604.1,2603.6,17.57784448]
[1646983573072,0.0100386,2604.1,2604.0,11.76]
[1646983573279,0.0100386,2604.1,2604.0,17.17332555]
[1646983573473,0.0100386,2604.1,2604.0,13.67332555]
[1646983573676,3.86e-05,2604.1,2604.0,17.17332555]
[1646983573921,3.86e-05,2604.1,2604.0,17.82925592]
[1646983574224,0.00096,2604.9,2604.0,17.82925592]
[1646983574225,0.5343276,2605.4,2604.4,11.76]
[1646983574422,0.0467321,2605.6,2604.9,0.3853]
[1646983574624,0.9123321,2605.6,2605.3,0.01265885]
[1646983574822,0.9123321,2605.6,2605.4,12.80744689]
[1646983575020,0.0467321,2605.6,2605.4,12.80744689]
[1646983575220,0.0467321,2605.6,2605.4,13.76622689]
[1646983575421,0.0072811,2605.9,2605.6,2.0]
[1646983577024,0.0072811,2605.9,2605.6,5.5]
[1646983578075,0.0072811,2605.9,2605.6,2.0]
[1646983578479,0.0072811,2605.9,2605.6,1.95]
[1646983578877,0.01167003,2605.9,2605.6,1.95]
[1646983579778,0.01167003,2605.9,2605.7,0.00324172]
[1646983579978,0.0072811,2605.9,2605.8,0.96721518]
[1646983580176,0.01167003,2605.9,2605.8,0.96721518]
[1646983581085,0.0072811,2605.9,2605.8,0.96721518]
[1646983583421,0.00627,2605.9,2605.8,0.96721518]
[1646983583624,0.00627,2605.9,2605.7,0.07364488]
[1646983583823,0.00627,2605.9,2605.8,0.0012]
[1646983584627,0.00627,2605.9,2605.8,0.00204127]
[1646983585027,0.00627,2605.9,2605.8,0.08833176]
[1646983585274,0.00627,2605.9,2605.8,3.58833176]
[1646983585477,0.00627,2605.9,2605.8,4.54722176]
[1646983585673,0.00627,2605.9,2605.8,1.04722176]
[1646983586278,0.00627,2605.9,2605.8,4.54722176]
[1646983586477,0.00627,2605.9,2605.8,16.76922176]
[1646983586675,0.00627,2605.9,2605.8,13.26922176]
[1646983587075,0.09265401,2605.9,2605.8,5.92293127]
[1646983587475,0.09265401,2605.9,2605.8,17.68293127]
[1646983587676,0.09265401,2605.9,2605.8,14.18293127]
[1646983588478,0.09265401,2605.9,2605.8,14.56823127]
[1646983589222,5.401e-05,2605.9,2605.8,14.56823127]
[1646983589422,5.401e-05,2605.9,2605.8,14.18293127]
[1646983589620,0.01140814,2606.0,2605.8,2.42293127]
[1646983589621,0.01254,2606.0,2605.8,2.42293127]
[1646983589921,0.01694814,2606.0,2605.9,1.91741]
[1646983590124,0.01694814,2606.0,2605.9,2.37941]
[1646983590420,0.01694814,2606.0,2605.9,14.13941]
[1646983590622,0.01694814,2606.0,2605.9,15.13941]
[1646983590822,0.01254,2606.0,2605.9,3.37941]
[1646983591226,0.01254,2606.0,2605.9,6.87941]
[1646983591621,0.01254,2606.0,2605.9,3.37941]
[1646983591822,0.01254,2606.0,2605.9,2.37941]
[1646983592025,0.01254,2606.0,2605.9,0.462]
[1646983593388,0.01254,2606.0,2605.9,15.722]
[1646983593887,0.01254,2606.0,2605.9,16.722]
[1646983594092,0.01254,2606.0,2605.9,13.222]
[1646983594289,0.0050682,2606.2,2606.1,11.76]
[1646983594490,0.12260407,2607.3,2606.5,13.67702]
[1646983594688,0.03171296,2606.7,2606.5,1.91702]
[1646983594892,0.03171296,2606.7,2606.3,12.222]
[1646983594893,0.03171296,2606.7,2606.3,0.462]
[1646983595991,0.03171296,2606.7,2606.4,1.06516638]
[1646983596620,0.03171296,2606.7,2606.5,0.95861]
[1646983596819,0.0288049,2607.0,2606.8,1.08100951]
[1646983596820,0.03033058,2606.9,2606.8,1.08100951]
[1646983597017,0.03033058,2606.9,2606.6,0.95831248]
[1646983597417,0.03033058,2606.9,2606.6,4.45831248]
[1646983597620,0.03033058,2606.9,2606.7,0.08977742]
[1646983598024,0.03033058,2606.9,2606.7,0.087655]
[1646983599024,0.00587584,2606.9,2606.8,15.2185]
[1646983599227,0.00587584,2606.9,2606.8,0.9585]
[1646983599425,0.01029653,2606.9,2606.7,0.087655]
[1646983599623,1.37589653,2606.9,2606.7,0.087655]
[1646983599825,0.01029653,2606.9,2606.8,0.00107834]
[1646983600032,3.8537399,2608.3,2606.7,0.0802559]
[1646983600290,0.0285747,2610.6,2608.4,1.23078704]
[1646983600485,3.432539,2611.2,2608.4,1.23078704]
[1646983600486,0.94907282,2612.1,2610.5,5.781]
[1646983600686,0.94907282,2612.1,2609.7,0.01278869]
[1646983600687,25.89024672,2612.9,2611.6,0.32431957]
[1646983600884,25.89024672,2612.9,2611.5,0.01286801]
[1646983600885,0.0200772,2614.0,2612.5,3.0]
[1646983601084,2.5,2614.4,2613.9,6.29816322]
[1646983601085,0.44920297,2614.1,2613.9,6.29816322]
[1646983601389,0.44920297,2614.1,2613.4,0.01248949]
[1646983601390,0.00096,2614.2,2614.0,6.95334]
[1646983601591,0.0189552,2614.7,2614.1,0.10266588]
[1646983601799,2.54792962,2615.0,2614.2,0.01258861]
[1646983601984,0.0484451,2616.0,2614.9,0.01293243]
[1646983601985,0.13812783,2615.6,2614.9,0.01293243]
[1646983602188,0.13812783,2615.6,2615.0,0.03125]
[1646983602386,11.73013724,2615.9,2615.1,0.25]
[1646983602589,11.73013724,2615.9,2614.5,0.2759]
[1646983602590,1.01618419,2615.5,2614.5,0.2759]
[1646983602785,1.01618419,2615.5,2613.9,12.56373996]
[1646983602786,0.1,2615.1,2614.7,0.25]
[1646983603383,0.1,2615.1,2614.8,0.71034]
[1646983603384,0.06991608,2615.0,2614.8,0.71034]
[1646983603784,0.01285992,2614.9,2614.4,0.06990292]
[1646983604040,0.01285992,2614.9,2614.2,0.0725896]
[1646983604041,0.08220758,2614.9,2614.2,0.0725896]
[1646983604345,0.1,2615.1,2615.0,1.07694615]
[1646983604542,0.1,2615.1,2614.0,3.08592]
[1646983604543,0.1,2615.1,2614.3,0.21034]
[1646983604842,0.81382344,2614.4,2614.0,0.1745]
[1646983605045,0.81382344,2614.4,2613.5,5.95302]
[1646983605243,0.81382344,2614.4,2614.1,0.21034]
[1646983605444,0.462,2614.3,2613.1,1.0]
[1646983605640,0.462,2614.3,2614.1,0.1346403]
[1646983605843,0.762,2614.3,2613.1,0.03800219]
[1646983606247,0.762,2614.3,2613.1,0.99419219]
[1646983606248,0.108888,2614.3,2613.1,0.99419219]
[1646983606444,1.0363594,2614.0,2613.1,1.02320939]
[1646983606641,1.0363594,2614.0,2613.1,0.95619]
[1646983606948,0.09493016,2614.5,2613.2,0.07675515]
[1646983607342,0.09493016,2614.5,2613.4,0.07252049]
[1646983607773,0.23735096,2614.7,2613.5,5.5]
[1646983607975,0.23735096,2614.7,2614.0,0.95571]
[1646983608177,1.94560278,2615.2,2614.2,0.5]
[1646983608178,1.0,2615.2,2614.2,0.5]
[1646983608383,1.0,2615.2,2614.7,0.30010319]
[1646983608578,0.0001,2615.1,2614.7,2.21116319]
[1646983608779,7.96e-05,2615.4,2615.0,8.5603779]
[1646983608979,0.0139592,2615.9,2615.4,5.5]
[1646983609279,0.006852,2616.6,2616.1,1.90973]
[1646983609490,0.0067924,2617.8,2616.6,5.5]
[1646983609679,0.0353539,2617.8,2616.7,0.06447435]
[1646983609878,0.0353539,2617.8,2616.8,1.0]
[1646983610076,0.0353539,2617.8,2616.9,0.06570231]
[1646983610478,0.0288963,2618.4,2616.7,1.909]
[1646983610479,0.462,2618.3,2616.7,1.909]
[1646983610780,3.5,2617.9,2616.2,1.0]
[1646983610981,3.962,2618.3,2616.2,1.0]
[1646983610982,6.962,2617.8,2616.2,1.0]
[1646983611179,0.0128726,2618.3,2615.6,2.40928919]
[1646983611180,3.01215176,2617.6,2615.6,2.36]
[1646983611430,3.01215176,2617.6,2615.9,0.19393037]
[1646983611431,0.97263764,2617.0,2615.9,0.19393037]
[1646983611628,0.97263764,2617.0,2615.6,11.76]
[1646983611827,0.46296,2617.5,2615.9,0.03796066]
[1646983611828,3.50096,2616.9,2615.9,0.03796066]
[1646983612039,0.3,2616.6,2615.9,0.03796066]
[1646983612430,0.00096,2617.3,2615.9,0.03796066]
[1646983612631,0.30096,2617.3,2616.3,0.00276094]
[1646983612833,0.94861491,2616.7,2616.3,0.04071682]
[1646983613130,3.0,2617.3,2616.3,0.04071682]
[1646983613331,0.00096,2617.3,2616.3,0.04071682]
[1646983613532,0.762,2617.4,2616.3,0.03795588]
[1646983613831,0.00440766,2617.2,2616.7,0.00440861]
[1646983614035,1.07896809,2617.1,2616.7,0.00440861]
[1646983614231,1.07896809,2617.1,2616.7,0.04235811]
[1646983614232,1.37896809,2617.1,2616.7,0.04235811]
[1646983614536,3.0187464,2617.6,2616.7,0.04235811]
[1646983614537,0.0187464,2617.6,2616.7,0.04235811]
[1646983614733,0.0187464,2617.6,2616.7,3.5379495]
[1646983614931,0.0187464,2617.6,2616.7,0.0379495]
[1646983615168,0.0187464,2617.6,2616.6,1.1866]
[1646983615169,0.07783824,2617.9,2616.8,0.0040985]
[1646983615369,0.00096,2617.8,2616.8,0.03666205]
[1646983615572,0.07783824,2617.9,2616.8,0.03666205]
[1646983615973,3.0,2617.8,2616.8,0.03256355]
[1646983616377,0.462,2618.0,2616.8,1.03256355]
[1646983616579,1.10086742,2617.6,2616.8,1.03256355]
[1646983616980,0.462,2618.0,2617.9,0.57945021]
[1646983617182,0.98434537,2617.6,2616.9,2.53256218]
[1646983617378,0.3,2618.0,2617.0,0.0026313]
[1646983617579,0.3,2618.0,2617.0,0.03519212]
[1646983617580,0.3,2617.6,2617.0,0.03519212]
[1646983617780,0.46296,2618.2,2617.0,0.03519212]
[1646983617980,0.00096,2618.0,2617.0,0.03519212]
[1646983618180,3.0,2618.1,2617.0,1.03519212]
[1646983618380,0.92674028,2617.5,2616.5,3.75]
[1646983618581,0.462,2618.0,2616.5,3.75]
[1646983618582,0.00427222,2617.6,2617.0,0.00427324]
[1646983619020,0.00427222,2617.6,2617.0,0.03882003]
[1646983619620,1.03285243,2617.5,2617.0,0.03454679]
[1646983619825,1.03285243,2617.5,2617.0,0.03718168]
[1646983620021,1.03285243,2617.5,2617.0,1.03718168]
[1646983620229,1.33285243,2617.5,2617.0,1.03718168]
[1646983620428,4.5,2617.0,2616.4,0.1592]
[1646983620632,0.97143751,2617.1,2616.3,0.4543]
[1646983620633,0.97918339,2616.7,2616.3,0.4543]
[1646983620829,0.97918339,2616.7,2616.3,0.3047]
[1646983621027,1.27918339,2616.7,2616.3,0.3047]
[1646983621225,0.3,2617.0,2616.3,0.3047]
[1646983621427,0.462,2617.4,2616.3,0.3047]
[1646983621626,0.01215773,2618.2,2616.3,0.3047]
[1646983621627,3.0,2617.2,2616.3,0.3047]
[1646983621826,3.0,2616.9,2616.3,0.3047]
[1646983622228,0.93204427,2616.4,2616.3,0.3047]
[1646983622875,0.3,2616.5,2616.3,0.3047]
[1646983623177,0.00096,2617.3,2616.5,0.40843348]
[1646983623374,3.0,2618.3,2616.6,3.5]
[1646983623375,0.00096,2617.5,2616.6,3.5]
[1646983623575,3.0,2618.3,2616.5,1.40843348]
[1646983623576,0.00164662,2617.3,2616.5,1.40843348]
[1646983624176,0.93937714,2616.9,2616.5,0.40843348]
[1646983624776,0.93937714,2616.9,2616.8,0.00276481]
[1646983624979,1.23937714,2616.9,2616.8,0.00276481]
[1646983625376,1.23269864,2616.9,2616.8,0.00276481]
[1646983625575,1.23269864,2616.9,2616.5,0.40843348]
[1646983625776,5.5,2616.8,2616.5,0.00276486]
[1646983625979,3.0,2616.6,2615.5,0.1448]
[1646983626182,0.462,2616.5,2615.1,0.1456]
[1646983626422,0.462,2616.4,2615.0,3.5]
[1646983626625,0.46296,2616.4,2615.2,0.156]
[1646983626826,0.462,2616.4,2615.1,0.1592]
[1646983627026,0.88599745,2615.9,2615.2,0.9554]
[1646983627232,0.88599745,2615.9,2615.1,0.1512]
[1646983627426,1.01083073,2615.4,2614.8,0.19393037]
[1646983627631,0.8674943,2615.0,2614.7,0.44490319]
[1646983627827,0.00096,2615.8,2615.1,0.20614924]
[1646983627828,0.88456708,2615.2,2615.1,0.20614924]
[1646983628225,1.18456708,2615.2,2615.1,0.20614924]
[1646983628627,1.18456708,2615.2,2614.2,0.1496]
[1646983628628,5.5,2615.0,2614.2,0.1496]
[1646983628830,5.5,2615.0,2613.5,0.1496]
[1646983628831,0.462,2614.9,2613.5,0.1496]
[1646983629029,0.462,2614.9,2613.2,1.0]
[1646983629030,3.0,2614.6,2613.3,1.0]
[1646983629227,0.462,2614.5,2613.3,1.0]
[1646983629428,3.962,2614.5,2613.3,1.0]
[1646983629631,3.962,2614.5,2614.1,0.00441371]
[1646983629632,0.462,2614.5,2614.1,0.00441371]
[1646983630030,0.92198727,2614.3,2614.1,0.00441371]
[1646983630281,0.3,2614.3,2614.1,0.00229592]
[1646983630481,0.3,2614.3,2613.3,1.0]
[1646983630482,0.762,2614.3,2613.3,1.0]
[1646983630678,0.762,2614.3,2614.1,0.00441371]
[1646983630881,3.0,2614.2,2614.1,0.00441371]
[1646983631078,3.462,2614.2,2614.1,0.00441371]
[1646983631281,1.34144592,2614.2,2614.1,0.00441371]
[1646983631479,0.462,2614.2,2614.1,0.00441371]
[1646983631680,0.462,2614.2,2612.4,0.1536]
[1646983631883,0.462,2614.2,2612.0,0.01236948]
[1646983631884,0.462,2614.2,2612.5,5.0]
[1646983631885,3.0,2613.7,2612.5,5.0]
[1646983632080,0.462,2613.6,2612.5,5.0]
[1646983632484,0.96058134,2613.6,2612.5,5.0]
[1646983632680,4.12863598,2613.3,2612.5,5.0]
[1646983632884,0.462,2613.2,2612.5,5.0]
[1646983633082,0.462,2613.5,2612.5,5.0]
[1646983633282,3.762,2613.5,2612.5,5.0]
[1646983633682,5.5,2612.8,2612.5,0.5245]
[1646983633921,0.462,2612.7,2612.2,1.0]
[1646983634319,0.462,2613.1,2612.5,0.0027647]
[1646983634530,0.762,2613.1,2612.5,0.0027647]
[1646983635125,1.11902623,2613.0,2612.5,0.0027647]
[1646983635324,1.11902623,2613.0,2612.0,0.19393037]
[1646983635325,0.462,2612.9,2612.0,0.19393037]
[1646983635531,0.462,2612.9,2612.7,0.00276454]
[1646983635532,0.726783,2612.9,2612.7,0.00276454]
[1646983636530,0.726783,2612.9,2611.7,20.198]
[1646983636730,6.14746,2613.6,2612.7,0.00276454]
[1646983636731,0.00096,2613.3,2612.7,0.00276454]
[1646983636932,6.1465,2613.6,2612.7,0.00276454]
[1646983636933,3.00096,2613.5,2612.7,0.00276454]
[1646983637131,1.31733402,2613.3,2612.7,0.00276454]
[1646983637329,1.31660896,2613.2,2612.7,0.00276454]
[1646983637531,6.1465,2613.6,2612.7,0.00276454]